bitfinex/quotes_SOLUSD_20220212
["timestamp","ask_amount","ask_price","bid_price","bid_amount"]
[1644650751679,46.43501363,95.058,94.981,5.261]
[1644650751879,46.43501363,95.058,94.981,7.64466791]
[1644650752276,46.43501363,95.058,94.982,2.38366791]
[1644650752481,46.43501363,95.058,94.983,5.261]
[1644650752877,46.43501363,95.058,94.984,2.38366791]
[1644650753079,5.261,95.075,94.984,2.38366791]
[1644650753279,5.261,95.097,94.995,2.96776644]
[1644650753478,29.2552,95.112,95.01,15.13]
[1644650753680,23.9942,95.112,95.011,33.21476644]
[1644650753879,23.9942,95.112,95.03,15.7781]
[1644650754078,41.1022556,95.111,95.031,51.70268443]
[1644650754477,0.03887248,95.11,95.032,2.38366791]
[1644650754677,0.03887248,95.11,95.033,5.259]
[1644650755081,0.03887248,95.11,95.034,2.38366791]
[1644650755483,0.03887248,95.11,95.035,5.259]
[1644650755878,0.03887248,95.11,95.035,7.64266791]
[1644650756080,0.03887248,95.11,95.035,2.38366791]
[1644650756280,0.03887248,95.11,95.036,5.259]
[1644650757481,0.03887248,95.11,95.032,5.259]
[1644650758783,5.259,95.109,95.031,62.44978443]
[1644650759790,22.8988,95.108,95.031,62.44978443]
[1644650759992,5.259,95.107,95.031,46.44368443]
[1644650762891,5.259,95.107,95.032,2.38366791]
[1644650763292,5.259,95.107,95.031,46.44368443]
[1644650763492,22.8988,95.108,95.032,5.259]
[1644650764793,5.259,95.107,95.032,5.259]
[1644650766197,5.259,95.107,95.002,5.259]
[1644650766396,5.259,95.107,95.0,15.13]
[1644650767012,5.259,95.107,95.012,36.5503922]
[1644650767212,2.38366791,95.106,95.012,36.5503922]
[1644650767413,5.259,95.105,95.012,36.5503922]
[1644650768013,22.8988,95.108,95.013,7.64266791]
[1644650768014,5.259,95.107,95.013,7.64266791]
[1644650768213,5.259,95.107,95.012,36.5503922]
[1644650768513,22.8988,95.108,95.013,5.259]
[1644650768713,22.8988,95.108,95.013,7.64266791]
[1644650770114,5.259,95.107,95.013,7.64266791]
[1644650770418,0.03887248,95.11,95.014,2.38366791]
[1644650770614,0.03887248,95.11,95.015,5.259]
[1644650770816,0.03887248,95.13,95.03,15.13]
[1644650771013,27.874,95.141,95.031,53.3352]
[1644650771014,0.03887248,95.1,95.031,53.3352]
[1644650771215,0.03887248,95.12,95.031,55.71886791]
[1644650771414,0.03887248,95.12,95.031,53.3352]
[1644650771615,0.03887248,95.12,95.033,36.0371538]
[1644650771815,0.03887248,95.12,95.034,5.258]
[1644650772016,0.03887248,95.15,95.04,189.15]
[1644650772218,0.03887248,95.17,95.05,15.13]
[1644650772418,15.13,95.21,95.062,1.46430693]
[1644650772419,0.03887248,95.14,95.062,1.46430693]
[1644650772617,27.9133,95.186,95.051,29.456]
[1644650772618,0.03887248,95.16,95.07,15.13]
[1644650772817,0.03887248,95.18,95.08,15.13]
[1644650773020,0.03887248,95.15,95.08,15.13]
[1644650773218,41.96063299,95.185,95.08,15.13]
[1644650773219,0.03887248,95.17,95.08,15.13]
[1644650773419,5.256,95.169,95.08,15.13]
[1644650773718,0.03887248,95.16,95.081,5.255]
[1644650773918,0.03887248,95.17,95.081,5.255]
[1644650774120,0.03887248,95.18,95.081,7.63866791]
[1644650774319,36.70463299,95.185,95.081,7.63866791]
[1644650774320,0.03887248,95.17,95.082,2.38366791]
[1644650774520,0.03887248,95.18,95.082,2.38366791]
[1644650774918,0.03887248,95.18,95.083,23.3036]
[1644650775123,5.255,95.179,95.083,23.3036]
[1644650775318,0.03887248,95.17,95.084,7.63866791]
[1644650775521,36.70463299,95.185,95.084,7.63866791]
[1644650775522,5.255,95.179,95.084,7.63866791]
[1644650775719,0.03887248,95.17,95.085,2.38366791]
[1644650775919,0.03887248,95.17,95.086,41.32700751]
[1644650776121,0.03887248,95.18,95.1,15.13]
[1644650776319,5.255,95.179,95.101,48.20729274]
[1644650776518,0.03887248,95.18,95.101,53.46229274]
[1644650777120,0.03887248,95.18,95.102,2.38366791]
[1644650777320,0.03887248,95.18,95.103,5.255]
[1644650777519,5.255,95.179,95.102,2.38366791]
[1644650778825,5.255,95.179,95.101,48.20729274]
[1644650779924,23.021,95.178,95.101,48.20729274]
[1644650780125,5.255,95.177,95.101,48.20729274]
[1644650783928,5.255,95.177,95.083,23.3036]
[1644650784125,0.03887248,95.17,95.083,23.3036]
[1644650784325,5.256,95.169,95.083,23.3036]
[1644650784529,5.256,95.169,95.084,2.38366791]
[1644650784727,0.03887248,95.17,95.083,23.3036]
[1644650784926,0.03887248,95.17,95.085,37.80224083]
[1644650786128,45.08330475,95.168,95.085,37.80224083]
[1644650786429,5.256,95.167,95.085,37.80224083]
[1644650786628,5.256,95.167,95.086,5.256]
[1644650786829,5.256,95.167,95.09,15.13]
[1644650787030,45.08330475,95.168,95.091,5.256]
[1644650787230,45.08330475,95.168,95.091,7.63966791]
[1644650787632,45.08330475,95.168,95.092,2.38366791]
[1644650787931,45.08330475,95.168,95.093,5.255]
[1644650788132,5.256,95.169,95.093,5.255]
[1644650788332,5.256,95.169,95.094,2.38366791]
[1644650788535,0.03887248,95.17,95.094,2.38366791]
[1644650788733,23.021,95.178,95.095,5.255]
[1644650789031,0.03887248,95.17,95.096,2.38366791]
[1644650789232,5.255,95.175,95.096,2.38366791]
[1644650789433,0.03887248,95.17,95.11,15.13]
[1644650789733,0.03887248,95.19,95.111,22.6531]
[1644650789933,0.03887248,95.19,95.111,25.03676791]
[1644650790131,0.03887248,95.19,95.112,2.38366791]
[1644650790332,0.03887248,95.19,95.113,5.253]
[1644650790542,34.48010834,95.196,95.113,5.253]
[1644650790736,0.03887248,95.19,95.114,2.38366791]
[1644650790934,34.48010834,95.196,95.115,5.253]
[1644650791139,0.03887248,95.19,95.115,5.253]
[1644650791334,34.48010834,95.196,95.116,2.38366791]
[1644650791535,0.03887248,95.19,95.12,15.13]
[1644650791734,34.48010834,95.196,95.12,15.13]
[1644650791934,34.48010834,95.196,95.121,7.63666791]
[1644650792334,5.253,95.198,95.122,2.38366791]
[1644650792536,5.253,95.219,95.123,5.253]
[1644650792735,5.253,95.219,95.124,23.7304]
[1644650792935,5.253,95.219,95.125,5.253]
[1644650793134,5.253,95.219,95.125,7.63666791]
[1644650793334,34.68808968,95.218,95.126,2.38366791]
[1644650793535,5.253,95.217,95.13,15.13]
[1644650793738,5.253,95.217,95.131,5.253]
[1644650794036,5.253,95.217,95.131,7.63666791]
[1644650794237,5.253,95.217,95.132,2.38366791]
[1644650795837,0.03887248,95.22,95.132,2.38366791]
[1644650796538,0.03887248,95.22,95.133,5.253]
[1644650797039,0.03887248,95.22,95.134,2.38366791]
[1644650798441,0.03887248,95.22,95.135,5.253]
[1644650798643,0.03887248,95.22,95.14,15.13]
[1644650798845,0.03887248,95.22,95.141,5.253]
[1644650799043,5.253,95.219,95.142,42.43602084]
[1644650799247,0.03887248,95.22,95.143,5.253]
[1644650800472,0.03887248,95.22,95.144,2.38366791]
[1644650800645,0.03887248,95.22,95.145,5.253]
[1644650800847,39.88413057,95.225,95.145,5.253]
[1644650801046,0.03887248,95.22,95.146,2.38366791]
[1644650801246,39.88413057,95.225,95.15,15.13]
[1644650801449,0.03887248,95.22,95.15,15.13]
[1644650801646,23.1576,95.226,95.151,7.63566791]
[1644650802048,23.1576,95.226,95.152,2.38366791]
[1644650802246,23.1576,95.226,95.153,5.252]
[1644650802648,0.03887248,95.23,95.154,2.38366791]
[1644650802850,0.03887248,95.23,95.155,28.0656]
[1644650803052,0.03887248,95.25,95.17,15.13]
[1644650803249,5.251,95.26,95.171,46.38274347]
[1644650803447,0.03887248,95.25,95.171,48.76641138]
[1644650803648,5.28987248,95.26,95.171,48.76641138]
[1644650803849,0.03887248,95.25,95.172,25.28276791]
[1644650804052,5.251,95.249,95.172,25.28276791]
[1644650804250,0.03887248,95.25,95.172,25.28276791]
[1644650804448,5.251,95.249,95.172,25.28276791]
[1644650804650,5.251,95.249,95.173,2.38366791]
[1644650805150,5.251,95.249,95.172,22.8991]
[1644650805350,5.251,95.249,95.173,2.38366791]
[1644650805549,5.251,95.249,95.174,5.251]
[1644650806554,22.7808,95.248,95.174,5.251]
[1644650806752,5.251,95.247,95.172,22.8991]
[1644650807354,5.251,95.247,95.173,2.38366791]
[1644650807553,22.7808,95.248,95.174,5.251]
[1644650807753,5.251,95.247,95.173,2.38366791]
[1644650807978,5.251,95.247,95.175,2.38366791]
[1644650808475,0.03887248,95.27,95.176,4.751]
[1644650808676,0.03887248,95.27,95.19,15.13]
[1644650808874,0.03887248,95.27,95.191,23.6631]
[1644650809078,0.03887248,95.27,95.192,5.25]
[1644650809277,5.25,95.269,95.191,23.6631]
[1644650809875,5.25,95.269,95.192,2.38366791]
[1644650810176,0.03887248,95.27,95.192,2.38366791]
[1644650810575,0.03887248,95.27,95.191,23.6631]
[1644650811375,0.03887248,95.27,95.192,2.38366791]
[1644650811778,24.854,95.277,95.192,2.38366791]
[1644650811977,0.03984007,95.27,95.192,2.38366791]
[1644650812182,0.03984007,95.28,95.192,2.38366791]
[1644650812376,0.03984007,95.3,95.192,12.76758975]
[1644650812578,0.03984007,95.33,95.192,12.76758975]
[1644650812778,0.03984007,95.29,95.2,189.15]
[1644650812978,0.03984007,95.32,95.22,15.7433]
[1644650813180,5.248,95.328,95.231,44.05937929]
[1644650813379,0.03984007,95.31,95.232,5.247]
[1644650813579,0.03984007,95.32,95.232,5.247]
[1644650813780,46.75393154,95.321,95.232,7.63066791]
[1644650813980,46.75393154,95.321,95.233,2.38366791]
[1644650814181,46.75393154,95.321,95.231,44.05937929]
[1644650814182,5.247,95.32,95.231,44.05937929]
[1644650814384,30.096,95.32,95.233,5.247]
[1644650814584,24.849,95.32,95.232,31.15386791]
[1644650814783,24.849,95.32,95.234,2.38366791]
[1644650815182,24.849,95.32,95.232,28.7702]
[1644650815382,5.247,95.319,95.232,28.7702]
[1644650815588,5.247,95.319,95.232,23.5232]
[1644650815789,7.63066791,95.319,95.231,44.05937929]
[1644650815988,2.38366791,95.318,95.231,44.05937929]
[1644650816287,0.03984007,95.31,95.231,44.05937929]
[1644650816487,5.248,95.309,95.231,44.05937929]
[1644650816689,23.2433,95.308,95.232,2.38366791]
[1644650816889,23.2433,95.308,95.232,7.63166791]
[1644650817290,23.2433,95.308,95.233,2.38366791]
[1644650817790,23.2433,95.308,95.232,5.248]
[1644650817990,23.2433,95.308,95.233,2.38366791]
[1644650818191,35.51308224,95.306,95.231,44.05937929]
[1644650818392,5.248,95.305,95.231,44.05937929]
[1644650819395,5.248,95.305,95.232,2.38366791]
[1644650819691,35.51308224,95.306,95.233,5.248]
[1644650820094,35.51308224,95.306,95.234,2.38366791]
[1644650821193,23.2433,95.308,95.234,2.38366791]
[1644650822195,0.03984007,95.33,95.234,2.38366791]
[1644650822395,5.247,95.329,95.234,2.38366791]
[1644650824798,0.03984007,95.33,95.234,2.38366791]
[1644650824997,5.247,95.329,95.234,2.38366791]
[1644650826100,5.247,95.329,95.235,18.53628358]
[1644650826299,0.03984007,95.33,95.235,18.53628358]
[1644650826500,0.03984007,95.33,95.236,2.38366791]
[1644650826701,0.03984007,95.33,95.25,15.13]
[1644650826901,0.03984007,95.33,95.251,22.699]
[1644650827103,24.30524007,95.336,95.252,40.76302782]
[1644650827303,0.04006383,95.33,95.252,43.14669573]
[1644650827704,0.04006383,95.33,95.253,2.38366791]
[1644650827902,0.04006383,95.33,95.254,5.247]
[1644650828106,0.04006383,95.37,95.254,28.5713]
[1644650828306,0.04006383,95.37,95.255,2.38366791]
[1644650828505,0.04006383,95.37,95.256,5.245]
[1644650828710,0.04006383,95.37,95.27,15.13]
[1644650828905,0.04006383,95.37,95.272,48.66300502]
[1644650829106,0.04006383,95.37,95.273,5.245]
[1644650829509,0.04006383,95.37,95.273,7.62866791]
[1644650829711,0.04006383,95.37,95.274,2.38366791]
[1644650831111,0.04006383,95.37,95.275,5.245]
[1644650831309,0.04006383,95.37,95.29,15.13]
[1644650831507,0.04006383,95.37,95.292,44.7290287]
[1644650831709,0.04006383,95.37,95.293,5.244]
[1644650832108,0.04006383,95.37,95.293,7.62766791]
[1644650832312,0.04006383,95.37,95.294,2.38366791]
[1644650832509,0.04006383,95.37,95.295,5.244]
[1644650832710,0.04006383,95.42,95.31,15.13]
[1644650832921,0.04006383,95.41,95.311,29.3094]
[1644650833111,0.04006383,95.42,95.311,29.3094]
[1644650833312,0.04006383,95.4,95.32,189.15]
[1644650833512,0.04006383,95.44,95.33,15.13]
[1644650833712,5.241,95.439,95.331,102.11184595]
[1644650834237,5.241,95.439,95.332,2.38366791]
[1644650834414,5.241,95.439,95.333,5.241]
[1644650834616,0.04006383,95.44,95.35,189.15]
[1644650834816,52.211,95.478,95.36,204.28]
[1644650835015,46.97,95.478,95.38,189.15]
[1644650835213,46.97,95.478,95.39,15.13]
[1644650835422,5.24,95.477,95.39,15.13]
[1644650835614,46.97,95.478,95.39,15.13]
[1644650835814,46.97,95.478,95.391,2.38366791]
[1644650836015,5.239,95.477,95.39,15.13]
[1644650836314,5.239,95.449,95.39,15.13]
[1644650836512,5.239,95.477,95.39,15.13]
[1644650836715,5.239,95.449,95.39,15.13]
[1644650837218,5.239,95.449,95.381,45.32933616]
[1644650837420,5.239,95.449,95.366,2.38366791]
[1644650837421,2.38366791,95.448,95.366,2.38366791]
[1644650837614,15.13,95.44,95.314,5.24]
[1644650837814,0.48,95.431,95.286,1.46430693]
[1644650838019,0.48,95.431,95.274,48.3635]
[1644650838020,15.13,95.42,95.274,48.3635]
[1644650838217,28.9688,95.419,95.272,9.65]
[1644650838426,41.7023404,95.418,95.273,35.58425344]
[1644650838620,5.244,95.417,95.273,35.58425344]
[1644650838818,15.7391,95.4,95.273,35.58425344]
[1644650839019,15.13,95.39,95.273,35.58425344]
[1644650839320,5.244,95.389,95.273,35.58425344]
[1644650839519,0.48,95.381,95.272,9.65]
[1644650839723,15.13,95.37,95.272,9.65]
[1644650839924,15.13,95.36,95.272,9.65]
[1644650840121,15.13,95.35,95.272,9.65]
[1644650840324,5.245,95.349,95.272,9.65]
[1644650840528,34.29627654,95.348,95.273,38.6058526]
[1644650840723,5.246,95.347,95.273,38.6058526]
[1644650840923,7.62966791,95.347,95.273,38.6058526]
[1644650841123,2.38366791,95.346,95.273,38.6058526]
[1644650841323,5.246,95.345,95.273,38.6058526]
[1644650841526,3.6211781,95.345,95.273,38.6058526]
[1644650843155,34.29627654,95.348,95.274,5.246]
[1644650843349,0.04042795,95.37,95.274,5.246]
[1644650843751,5.245,95.389,95.274,5.246]
[1644650844053,0.04042795,95.36,95.282,1.46430693]
[1644650844248,0.04042795,95.38,95.289,1.46430693]
[1644650844449,0.04042795,95.39,95.3,15.13]
[1644650844648,0.04042795,95.37,95.32,15.7275]
[1644650844849,5.244,95.439,95.32,30.8575]
[1644650844850,0.04042795,95.43,95.32,30.8575]
[1644650845052,5.242,95.429,95.32,15.13]
[1644650845252,0.04042795,95.42,95.321,36.54157427]
[1644650846551,5.242,95.419,95.321,36.54157427]
[1644650846753,113.0,95.402,95.321,36.54157427]
[1644650846951,42.40685494,95.401,95.321,36.54157427]
[1644650851357,37.16385494,95.401,95.321,36.54157427]
[1644650852255,0.04042795,95.41,95.321,36.54157427]
[1644650852455,15.17042795,95.43,95.322,5.242]
[1644650852659,0.04042795,95.42,95.33,15.13]
[1644650852856,0.04042795,95.43,95.33,15.13]
[1644650853057,5.242,95.429,95.33,15.13]
[1644650853262,0.04042795,95.42,95.33,15.13]
[1644650853461,5.242,95.419,95.33,15.13]
[1644650853664,0.04042795,95.41,95.33,15.13]
[1644650853859,47.84607783,95.428,95.321,36.54157427]
[1644650853860,5.242,95.419,95.321,36.54157427]
[1644650854059,5.242,95.409,95.321,36.54157427]
[1644650854259,39.31754717,95.408,95.321,36.54157427]
[1644650854459,44.56054717,95.408,95.321,36.54157427]
[1644650854660,0.04042795,95.4,95.291,5.243]
[1644650854861,0.04042795,95.4,95.249,2.96776644]
[1644650854862,5.244,95.399,95.278,5.243]
[1644650855060,5.244,95.399,95.244,48.4763]
[1644650855061,0.04042795,95.39,95.271,1.46430693]
[1644650855262,0.04042795,95.39,95.25,15.13]
[1644650855263,5.244,95.389,95.258,1.46430693]
[1644650855460,0.04042795,95.38,95.258,1.46430693]
[1644650855661,5.245,95.379,95.256,1.46430693]
[1644650855859,46.59770345,95.378,95.257,36.7358952]
[1644650856059,0.04042795,95.37,95.259,1.46430693]
[1644650856263,5.245,95.369,95.26,6.70930693]
[1644650856460,0.04042795,95.36,95.26,1.46430693]
[1644650856662,0.04042795,95.36,95.261,5.245]
[1644650856862,5.246,95.359,95.263,1.46430693]
[1644650857060,0.04042795,95.35,95.264,5.245]
[1644650857261,0.04042795,95.35,95.263,1.46430693]
[1644650857460,5.246,95.349,95.263,1.46430693]
[1644650857660,0.04042795,95.35,95.264,5.246]
[1644650858059,0.04042795,95.35,95.26,29.80390693]
[1644650858060,0.04042795,95.35,95.261,5.246]
[1644650858267,0.04042795,95.38,95.263,1.46430693]
[1644650858460,0.04042795,95.38,95.271,1.46430693]
[1644650858660,5.245,95.379,95.28,12.6]
[1644650858861,0.04042795,95.38,95.281,5.244]
[1644650859062,0.04042795,95.38,95.281,51.22734748]
[1644650859063,5.244,95.378,95.281,51.22734748]
[1644650859261,5.244,95.379,95.281,51.22734748]
[1644650859464,0.04042795,95.38,95.281,51.22734748]
[1644650859662,0.04042795,95.38,95.282,1.46430693]
[1644650859863,0.04042795,95.38,95.283,6.70830693]
[1644650860063,0.04042795,95.38,95.29,15.7346]
[1644650860263,0.04042795,95.38,95.3,12.6]
[1644650860487,0.04042795,95.38,95.301,40.72832454]
[1644650860666,69.02098263,95.389,95.301,40.72832454]
[1644650860667,22.7027,95.389,95.301,40.72832454]
[1644650860865,0.04042795,95.38,95.301,40.72832454]
[1644650861073,4.995,95.45,95.301,40.72832454]
[1644650861074,0.04042795,95.39,95.302,2.38366791]
[1644650861265,0.04042795,95.41,95.302,5.243]
[1644650861466,0.04042795,95.42,95.31,15.7316]
[1644650861666,0.04042795,95.4,95.32,12.6]
[1644650861865,0.04042795,95.42,95.321,42.44586459]
[1644650862064,0.04042795,95.41,95.321,42.44586459]
[1644650862264,0.04042795,95.42,95.321,42.44586459]
[1644650862463,0.04042795,95.41,95.321,37.20286459]
[1644650862665,0.04042795,95.42,95.321,37.20286459]
[1644650862966,0.04042795,95.41,95.321,37.20286459]
[1644650863163,69.55338906,95.428,95.321,37.20286459]
[1644650863164,0.04042795,95.42,95.321,37.20286459]
[1644650863369,0.04042795,95.41,95.321,37.20286459]
[1644650863564,0.04042795,95.42,95.321,37.20286459]
[1644650863765,0.04042795,95.41,95.321,37.20286459]
[1644650863966,2.38366791,95.419,95.321,37.20286459]
[1644650864166,48.57456418,95.408,95.321,37.20286459]
[1644650864567,0.04042795,95.4,95.321,37.20286459]
[1644650864767,5.243,95.399,95.321,37.20286459]
[1644650864967,7.62666791,95.399,95.321,37.20286459]
[1644650865174,2.38366791,95.399,95.291,5.243]
[1644650865371,0.04042795,95.39,95.291,5.243]
[1644650865571,0.04042795,95.39,95.258,1.46430693]
[1644650865572,12.6,95.38,95.258,1.46430693]
[1644650865769,0.04042795,95.37,95.249,1.46430693]
[1644650865970,12.64042795,95.37,95.246,1.46430693]
[1644650866170,0.04042795,95.36,95.247,36.35092056]
[1644650866373,44.39047587,95.358,95.247,37.81522749]
[1644650866571,44.39047587,95.358,95.25,1.46430693]
[1644650866770,5.246,95.357,95.251,1.46430693]
[1644650866970,5.246,95.357,95.252,1.46430693]
[1644650867470,5.246,95.357,95.253,5.246]
[1644650867670,44.39047587,95.358,95.252,1.46430693]
[1644650867869,44.39047587,95.358,95.253,6.71030693]
[1644650868174,44.39047587,95.358,95.251,5.246]
[1644650868371,5.246,95.357,95.251,5.246]
[1644650868571,5.246,95.357,95.252,1.46430693]
[1644650868770,5.246,95.357,95.258,1.46430693]
[1644650868974,5.246,95.357,95.27,12.6]
[1644650869172,5.246,95.357,95.271,45.36596211]
[1644650869373,5.245,95.359,95.271,50.61096211]
[1644650870073,46.87037308,95.358,95.271,50.61096211]
[1644650870473,0.04042795,95.36,95.271,50.61096211]
[1644650870677,0.04042795,95.36,95.272,2.38366791]
[1644650870872,0.04042795,95.36,95.273,5.245]
[1644650871276,0.04042795,95.36,95.275,1.46430693]
[1644650871475,0.04042795,95.36,95.29,12.6]
[1644650871673,23.1023,95.369,95.291,45.48466271]
[1644650871873,23.1023,95.369,95.291,50.72966271]
[1644650872074,0.04042795,95.37,95.292,2.38366791]
[1644650872375,0.04042795,95.39,95.293,5.244]
[1644650872575,0.04042795,95.37,95.295,1.46430693]
[1644650872774,0.04042795,95.4,95.311,36.7247643]
[1644650872975,0.04042795,95.36,95.311,36.7247643]
[1644650873179,0.04042795,95.4,95.312,5.243]
[1644650874374,0.04042795,95.4,95.311,41.9677643]
[1644650876979,5.243,95.399,95.311,36.7247643]
[1644650877278,7.62666791,95.399,95.311,36.7247643]
[1644650877677,2.38366791,95.398,95.311,36.7247643]
[1644650877879,0.04042795,95.39,95.311,36.7247643]
[1644650878285,41.37826131,95.388,95.311,36.7247643]
[1644650878478,5.243,95.387,95.311,36.7247643]
[1644650878678,7.62666791,95.387,95.311,36.7247643]
[1644650878880,2.38366791,95.386,95.311,36.7247643]
[1644650879083,5.243,95.385,95.272,5.243]
[1644650879288,5.243,95.385,95.27,15.739]
[1644650879289,0.04042795,95.38,95.27,15.739]
[1644650879482,5.245,95.379,95.27,15.739]
[1644650879681,7.62866791,95.379,95.27,15.739]
[1644650880082,7.62866791,95.379,95.272,35.13206034]
[1644650880283,7.62866791,95.379,95.273,5.245]
[1644650881883,5.245,95.379,95.28,15.7371]
[1644650882083,0.04042795,95.38,95.28,15.7371]
[1644650882084,0.04042795,95.38,95.29,12.6]
[1644650882483,0.04042795,95.38,95.291,5.244]
[1644650883105,0.04042795,95.38,95.292,40.46358418]
[1644650883307,0.04042795,95.38,95.293,5.244]
[1644650883907,0.04042795,95.38,95.3,15.7333]
[1644650884209,5.244,95.379,95.3,15.7333]
[1644650885410,0.04042795,95.38,95.3,15.7333]
[1644650887310,45.08783727,95.383,95.3,15.7333]
[1644650887512,2.38366791,95.38,95.3,15.7333]
[1644650887712,5.244,95.379,95.3,15.7333]
[1644650887911,2.38366791,95.38,95.292,40.46358418]
[1644650887912,45.08783727,95.383,95.292,40.46358418]
[1644650888515,2.38366791,95.382,95.292,40.46358418]
[1644650888713,5.244,95.381,95.292,40.46358418]
[1644650889114,14.98366791,95.38,95.292,40.46358418]
[1644650889312,12.6,95.38,95.292,40.46358418]
[1644650889513,45.08783727,95.383,95.292,42.84725209]
[1644650889716,45.08783727,95.383,95.293,5.244]
[1644650890116,45.08783727,95.383,95.294,2.38366791]
[1644650890318,45.08783727,95.383,95.295,5.244]
[1644650891418,45.08783727,95.383,95.31,3.0034082]
[1644650891615,5.244,95.382,95.311,44.37364157]
[1644650891817,45.08783727,95.383,95.311,44.37364157]
[1644650892017,5.244,95.382,95.311,44.37364157]
[1644650894223,45.08783727,95.383,95.311,44.37364157]
[1644650894423,48.3467,95.384,95.311,44.37364157]
[1644650894622,0.04042795,95.4,95.312,2.38366791]
[1644650894824,5.243,95.405,95.312,7.62666791]
[1644650895022,46.9664,95.418,95.312,7.62666791]
[1644650895023,5.243,95.406,95.312,7.62666791]
[1644650895323,0.04042795,95.41,95.313,2.38366791]
[1644650895523,5.243,95.409,95.314,5.243]
[1644650895823,5.243,95.409,95.32,15.7317]
[1644650896026,0.04042795,95.41,95.32,15.7317]
[1644650896228,5.243,95.415,95.321,2.38366791]
[1644650896425,5.243,95.415,95.32,15.7317]
[1644650897225,2.38366791,95.414,95.314,5.243]
[1644650897428,1.48148071,95.409,95.314,5.243]
[1644650897624,12.64042795,95.41,95.311,44.37364157]
[1644650897625,1.48148071,95.405,95.311,44.37364157]
[1644650897824,5.243,95.404,95.311,44.37364157]
[1644650898031,12.6,95.39,95.311,44.37364157]
[1644650898233,36.51966174,95.389,95.311,44.37364157]
[1644650898725,38.90332965,95.389,95.311,44.37364157]
[1644650898927,2.38366791,95.388,95.311,44.37364157]
[1644650899125,5.243,95.387,95.311,44.37364157]
[1644650899524,36.51966174,95.389,95.311,44.37364157]
[1644650899525,5.243,95.388,95.311,44.37364157]
[1644650901529,5.243,95.388,95.373,3.0034082]
[1644650901727,36.51966174,95.389,95.373,3.0034082]
[1644650902326,5.243,95.402,95.373,0.0034082]
[1644650902527,5.242,95.388,95.373,0.0034082]
[1644650902727,0.04042795,95.39,95.373,0.0034082]
[1644650902928,5.241,95.399,95.373,0.0034082]
[1644650903131,7.66509586,95.4,95.373,0.0034082]
[1644650903328,0.04042795,95.39,95.373,0.0034082]
[1644650903530,12.6,95.39,95.373,0.0034082]
[1644650903731,7.62566791,95.389,95.373,0.0034082]
[1644650903935,32.25086791,95.389,95.373,0.0034082]
[1644650904134,2.38366791,95.388,95.373,0.0034082]
[1644650904333,5.242,95.387,95.373,0.0034082]
[1644650904533,29.0426,95.387,95.373,0.0034082]
[1644650904734,2.38366791,95.386,95.373,0.0034082]
[1644650904933,5.242,95.385,95.373,0.0034082]
[1644650905333,2.38366791,95.384,95.373,0.0034082]
[1644650905535,12.6,95.38,95.373,0.0034082]
[1644650905735,15.63219997,95.38,95.373,0.0034082]
[1644650905935,7.62566791,95.379,95.373,0.0034082]
[1644650906336,67.0,95.374,95.26,1.46430693]
[1644650906536,67.0,95.374,95.234,2.96776644]
[1644650906537,15.7478,95.35,95.251,6.70630693]
[1644650906740,12.6,95.34,95.251,5.242]
[1644650906936,5.246,95.339,95.251,5.242]
[1644650907137,45.74362675,95.338,95.251,5.242]
[1644650907336,5.246,95.337,95.251,5.242]
[1644650907535,7.62966791,95.337,95.251,5.242]
[1644650907735,2.38366791,95.336,95.251,5.242]
[1644650907939,5.246,95.335,95.242,39.91845054]
[1644650908137,12.6,95.32,95.242,39.91845054]
[1644650908340,53.2066829,95.319,95.242,39.91845054]
[1644650909445,53.2066829,95.319,95.233,1.46430693]
[1644650909745,50.21916791,95.318,95.216,1.46430693]
[1644650909945,15.7538,95.31,95.208,1.46430693]
[1644650910146,12.6,95.3,95.205,1.46430693]
[1644650910347,30.0162,95.299,95.205,1.46430693]
[1644650910550,47.12288172,95.298,95.206,42.7597869]
[1644650910748,5.249,95.297,95.206,42.7597869]